bitfinex/quotes_SOLUSD_20251120
["timestamp","ask_amount","ask_price","bid_price","bid_amount"]
[1763652421659,7.07621142,140.16,140.12,1.99999998]
[1763652421858,1.76,140.15,140.12,1.99999998]
[1763652422061,1.76,140.15,140.11,7.07621142]
[1763652422062,2.46,140.15,140.11,7.07621142]
[1763652422362,2.46,140.15,140.13,7.07621142]
[1763652422589,8.89527564,140.15,140.13,7.07621142]
[1763652422881,0.7,140.14,140.11,7.07621142]
[1763652423075,2.46,140.15,140.12,7.07621142]
[1763652423277,18.82096,140.14,140.09,1.99999998]
[1763652423477,18.82096,140.14,140.08,7.07621142]
[1763652423692,7.77621142,140.13,140.09,1.99999998]
[1763652423863,2.46,140.12,140.09,1.99999998]
[1763652424063,2.46,140.12,140.07,7.07621142]
[1763652424064,9.53621142,140.12,140.07,7.07621142]
[1763652424393,1.76,140.12,140.1,7.07621142]
[1763652424556,7.13524873,140.15,140.11,7.07621142]
[1763652424765,1.76,140.14,140.12,7.07621142]
[1763652425385,1.76,140.14,140.13,7.07621142]
[1763652425591,1.76,140.14,140.1,11.78882767]
[1763652425789,0.7,140.13,140.1,11.78882767]
[1763652425991,0.7,140.13,140.1,7.07621142]
[1763652426299,0.7,140.13,140.09,1.99999998]
[1763652426466,7.13673993,140.12,140.09,9.0762114]
[1763652426804,19.88096,140.13,140.11,7.07621142]
[1763652427005,27.01724097,140.13,140.09,9.0762114]
[1763652427172,27.01724097,140.13,140.07,9.78882769]
[1763652427173,7.77621142,140.12,140.07,1.99999998]
[1763652427378,0.7,140.12,140.09,1.99999998]
[1763652427601,18.12096,140.12,140.09,9.0762114]
[1763652427779,0.7,140.11,140.1,1.99999998]
[1763652427978,0.7,140.11,140.09,1.99999998]
[1763652428501,1.76,140.12,140.1,1.99999998]
[1763652428701,1.76,140.12,140.09,9.0762114]
[1763652428702,9.59709353,140.12,140.09,9.0762114]
[1763652428897,0.7,140.11,140.07,9.0762114]
[1763652429079,0.7,140.11,140.07,1.99999998]
[1763652429278,0.7,140.11,140.04,29.86978769]
[1763652429279,0.7,140.11,140.05,7.07621142]
[1763652429512,0.7,140.11,140.07,9.0762114]
[1763652429802,0.7,140.11,140.08,9.0762114]
[1763652429981,1.76,140.1,140.08,9.0762114]
[1763652430305,1.76,140.1,140.08,1.99999998]
[1763652430504,2.46,140.1,140.08,1.99999998]
[1763652430714,0.7,140.09,140.08,1.99999998]
[1763652430917,7.07621142,140.07,140.04,0.2]
[1763652431215,8.83621142,140.06,140.04,0.2]
[1763652431410,0.7,140.05,140.04,0.2]
[1763652431574,18.12096,140.07,140.04,0.2]
[1763652431775,20.58096,140.07,140.04,7.27621142]
[1763652432003,20.58096,140.07,140.04,0.2]
[1763652432214,7.77621142,140.06,140.04,0.2]
[1763652432502,7.07621142,140.05,140.04,0.2]
[1763652432707,14.91651845,140.05,140.04,0.2]
[1763652432908,14.91651845,140.05,139.97,10.66882769]
[1763652432909,7.07621142,140.0,139.97,0.2]
[1763652433115,2.46,139.99,139.97,0.2]
[1763652433476,20.58096,139.99,139.97,0.2]
[1763652434090,2.46,139.99,139.97,0.2]
[1763652434602,25.26534808,139.97,139.95,0.2]
[1763652435002,7.14426459,139.98,139.95,0.2]
[1763652435210,1.76,139.97,139.95,0.2]
[1763652435408,2.46,139.97,139.95,0.2]
[1763652435714,1.76,139.97,139.95,0.2]
[1763652436292,7.14412397,139.98,139.96,7.27621142]
[1763652436293,1.76,139.98,139.96,7.27621142]
[1763652436798,1.26,139.98,139.96,0.2]
[1763652437003,18.12096,139.97,139.96,0.2]
[1763652437194,8.40388562,139.98,139.96,0.2]
[1763652437390,7.07621142,140.02,139.97,0.68]
[1763652437689,0.7,140.03,139.97,7.75621142]
[1763652437690,1.76,140.01,139.97,7.75621142]
[1763652438102,7.07621142,140.02,139.97,7.75621142]
[1763652438293,24.98929029,140.06,139.96,7.34466981]
[1763652438294,1.76,140.01,139.99,7.07621142]
[1763652438488,7.07621142,140.04,139.99,7.75621142]
[1763652438689,7.07621142,140.08,140.02,16.86503911]
[1763652438690,0.7,140.08,140.02,16.86503911]
[1763652438911,8.83621142,140.07,140.02,9.78882769]
[1763652439090,18.12096,140.06,140.02,16.86503911]
[1763652439297,18.12096,140.06,140.02,17.54503911]
[1763652439698,25.19717142,140.06,140.02,9.78882769]
[1763652439909,7.77621142,140.06,140.02,9.78882769]
[1763652440290,8.83621142,140.07,140.02,7.77621142]
[1763652440482,9.48621142,140.07,140.02,7.77621142]
[1763652440685,25.63929029,140.06,140.0,7.07621142]
[1763652440910,25.19717142,140.03,139.95,0.9]
[1763652441109,1.76,140.02,139.98,7.07621142]
[1763652441417,1.76,140.02,139.98,7.77621142]
[1763652441631,7.72621142,140.01,139.96,0.2]
[1763652441791,7.07621142,139.98,139.96,0.2]
[1763652442104,26.95717142,139.97,139.96,0.2]
[1763652442488,27.60717142,139.97,139.96,0.2]
[1763652442717,34.7515595,139.97,139.96,0.2]
[1763652443797,27.60717142,139.97,139.96,0.2]
[1763652444011,34.7515595,139.97,139.96,0.2]
[1763652444498,16.6305995,139.97,139.96,0.2]
[1763652445001,18.12096,139.96,139.95,0.2]
[1763652445201,25.84717142,139.96,139.92,1e-08]
[1763652445401,7.07621142,139.93,139.91,1e-08]
[1763652445611,8.83621142,139.92,139.91,1e-08]
[1763652445998,9.48621142,139.92,139.91,1e-08]
[1763652446691,16.63315252,139.92,139.91,1e-08]
[1763652448219,19.88096,139.92,139.91,1e-08]
[1763652448698,25.2679011,139.92,139.91,1e-08]
[1763652448894,27.0279011,139.92,139.91,1e-08]
[1763652449118,19.88096,139.92,139.91,1e-08]
[1763652449331,34.77411252,139.92,139.91,1e-08]
[1763652450544,32.34411252,139.92,139.91,1e-08]
[1763652450742,19.88096,139.92,139.91,1e-08]
[1763652451255,34.77411252,139.92,139.91,1e-08]
[1763652451414,23.72936394,139.92,139.91,1e-08]
[1763652452522,9.5769411,139.92,139.91,1e-08]
[1763652452727,16.65315252,139.92,139.91,1e-08]
[1763652452916,27.6979011,139.92,139.91,1e-08]
[1763652453115,16.65315252,139.92,139.91,1e-08]
[1763652453333,34.77411252,139.92,139.91,1e-08]
[1763652453647,16.65315252,139.92,139.91,1e-08]
[1763652454415,23.72936394,139.92,139.91,1e-08]
[1763652455517,18.12096,139.89,139.82,9.78882769]
[1763652455730,1.76,139.88,139.81,0.71]
[1763652455942,1.76,139.87,139.83,7.07621142]
[1763652456158,1.76,139.86,139.84,7.07621142]
[1763652456538,1.76,139.86,139.85,0.71]
[1763652457130,18.12096,139.88,139.86,9.78882769]
[1763652457131,1.76,139.88,139.86,9.78882769]
[1763652457348,1.76,139.88,139.85,0.71]
[1763652457349,1.76,139.88,139.85,7.78621142]
[1763652457533,1.76,139.88,139.86,9.78882769]
[1763652457733,1.76,139.88,139.86,10.49882769]
[1763652457945,1.76,139.88,139.87,0.71]
[1763652458144,1.76,139.88,139.86,9.78882769]
[1763652458526,1.76,139.88,139.84,0.71]
[1763652458527,8.83621142,139.88,139.84,0.71]
[1763652458729,7.07621142,139.87,139.83,9.78882769]
[1763652458928,14.22621857,139.86,139.83,0.71]
[1763652459157,8.83621142,139.85,139.81,10.49882769]
[1763652459630,8.83621142,139.85,139.82,0.71]
[1763652459958,1.76,139.84,139.83,9.78882769]
[1763652460248,1.76,139.84,139.83,16.86503911]
[1763652460450,1.76,139.84,139.83,17.57503911]
[1763652461133,1.76,139.86,139.83,24.72652985]
[1763652461453,1.76,139.86,139.84,7.78621142]
[1763652461955,1.76,139.86,139.85,10.49882769]
[1763652462340,1.76,139.87,139.85,10.49882769]
[1763652462535,1.76,139.87,139.86,0.71]
[1763652462750,17.86639513,139.93,139.87,9.78882769]
[1763652463058,17.86639513,139.93,139.87,22.14907437]
[1763652463059,7.14745193,139.91,139.87,22.14907437]
[1763652463264,21.26722207,139.92,139.87,22.85907437]
[1763652463432,21.26722207,139.92,139.88,0.71]
[1763652463833,1.76,139.91,139.89,9.78882769]
[1763652464133,1.76,139.91,139.88,0.71]
[1763652464460,1.76,139.91,139.89,9.78882769]
[1763652464666,1.76,139.91,139.88,0.71]
[1763652465065,8.90750983,139.91,139.88,0.71]
[1763652465838,1.76,139.91,139.88,0.71]
[1763652466075,8.90745432,139.91,139.88,0.71]
[1763652466251,26.77608415,139.91,139.88,0.71]
[1763652466452,39.13633083,139.91,139.86,22.85907437]
[1763652466773,12.36024668,139.89,139.84,0.71]
[1763652466943,19.88096,139.88,139.84,0.71]
[1763652467144,19.88096,139.88,139.85,22.14907437]
[1763652467372,1.76,139.88,139.87,9.78882769]
[1763652467876,1.76,139.88,139.87,22.85907437]
[1763652468759,1.76,139.88,139.87,10.49882769]
[1763652469767,8.90898484,139.88,139.86,9.78882769]
[1763652470067,8.90898484,139.88,139.86,10.49882769]
[1763652470273,1.76,139.88,139.86,10.49882769]
[1763652470445,1.76,139.89,139.88,9.78882769]
[1763652470647,12.36024668,139.93,139.88,22.14907437]
[1763652470955,21.26756376,139.92,139.88,10.44882769]
[1763652471284,8.90731708,139.92,139.89,0.66]
[1763652471449,30.48120668,139.94,139.9,9.78882769]
[1763652471651,2.42,139.93,139.88,12.36024668]
[1763652471852,14.12024668,139.93,139.89,9.78882769]
[1763652472072,12.36024668,139.92,139.87,12.36024668]
[1763652472245,12.36024668,139.92,139.88,9.78882769]
[1763652472442,12.36024668,139.92,139.88,10.44882769]
[1763652472674,12.36024668,139.93,139.89,0.66]
[1763652472864,1.76,139.92,139.89,0.66]
[1763652473176,8.90719154,139.92,139.89,10.44882769]
[1763652473380,1.76,139.91,139.89,10.44882769]
[1763652473670,1.76,139.91,139.88,9.78882769]
[1763652473844,1.76,139.9,139.89,22.80907437]
[1763652474248,12.36024668,139.95,139.9,9.78882769]
[1763652474445,1.76,139.94,139.9,22.80907437]
[1763652474757,1.76,139.94,139.91,0.66]
[1763652475368,1.76,139.94,139.85,1.76]
[1763652475369,20.16667703,139.93,139.89,9.78882769]
[1763652475587,56.15371292,139.93,139.88,13.02024668]
[1763652475870,56.15371292,139.93,139.89,10.44882769]
[1763652476277,55.49371292,139.93,139.89,10.44882769]
[1763652476441,1.76,139.92,139.89,13.02024668]
[1763652476772,1.76,139.92,139.88,12.36024668]
[1763652476946,2.42,139.92,139.89,9.78882769]
[1763652477142,7.14745193,139.91,139.89,9.78882769]
[1763652477859,8.90716496,139.92,139.89,10.44882769]
[1763652478058,1.76,139.92,139.9,0.66]
[1763652478266,8.90707816,139.92,139.9,0.66]
[1763652478455,1.76,139.92,139.9,0.66]
[1763652478649,8.9070817,139.92,139.89,22.14907437]
[1763652478960,1.76,139.92,139.9,13.02024668]
[1763652479149,1.76,139.92,139.91,0.66]
[1763652479342,0.66,139.96,139.92,9.78882769]
[1763652479549,14.12024668,139.95,139.92,9.78882769]
[1763652479853,32.24120668,139.95,139.92,9.78882769]
[1763652480058,19.88096,139.95,139.91,22.14907437]
[1763652480256,19.88096,139.95,139.91,22.80907437]
[1763652480453,5.98653378,140.03,139.91,22.80907437]
[1763652480454,0.66,140.02,139.94,12.36024668]
[1763652480651,12.36024668,139.98,139.92,0.66]
[1763652480959,1.76,139.97,139.94,9.78882769]
[1763652481357,7.14489854,139.96,139.94,10.44882769]
[1763652481558,0.66,139.95,139.9,13.02024668]
[1763652481758,1.76,139.94,139.91,13.02024668]
[1763652482062,12.36024668,139.92,139.88,9.78882769]
[1763652482275,1.76,139.91,139.88,9.78882769]
[1763652482459,1.76,139.91,139.89,10.44882769]
[1763652482659,1.76,139.93,139.9,22.14907437]
[1763652482977,1.76,139.93,139.9,22.80907437]
[1763652483164,1.76,139.93,139.9,9.78882769]
[1763652483362,20.16718778,139.92,139.86,10.44882769]
[1763652483569,37.37454055,139.92,139.88,9.78882769]
[1763652483775,21.2667061,139.93,139.88,22.14907437]
[1763652484078,1.76,139.92,139.89,0.66]
[1763652484282,18.12096,139.94,139.91,9.78882769]
[1763652484463,38.01667576,140.02,139.94,9.78882769]
[1763652484662,1.76,140.01,139.97,22.14907437]
[1763652485067,1.76,140.01,139.97,22.80907437]
[1763652485269,7.14285714,140.0,139.98,0.66]
[1763652485588,1.76,140.0,139.99,22.14907437]
[1763652485882,7.14161929,140.03,139.99,22.80907437]
[1763652485883,18.12096,140.03,139.99,22.80907437]
[1763652486066,19.88096,140.02,140.0,0.66]
[1763652486380,1.76,140.01,140.0,10.44882769]
[1763652486581,1.76,140.01,139.98,13.02024668]
[1763652486890,1.76,140.01,139.97,12.36024668]
[1763652487052,1.76,140.01,139.98,10.44882769]
[1763652487263,1.76,140.01,139.97,12.36024668]
[1763652487264,7.14285714,140.0,139.97,10.44882769]
[1763652487477,8.90254253,140.01,139.97,10.44882769]
[1763652487893,26.75840996,140.01,139.97,10.44882769]
[1763652488064,26.75840996,140.01,139.97,22.80907437]
[1763652488388,8.90244392,140.01,139.97,22.14907437]
[1763652488684,8.90244392,140.01,139.98,0.66]
[1763652488890,30.48120668,140.03,139.98,13.02024668]
[1763652489186,1.76,140.02,139.98,13.02024668]
[1763652489394,26.75642908,140.02,139.99,0.66]
[1763652489689,1.76,140.02,139.99,0.66]
[1763652489875,26.75646029,140.02,139.98,12.36024668]
[1763652490188,13.02024668,140.01,139.96,12.36024668]
[1763652490357,13.02024668,140.01,139.93,27.90978769]
[1763652490358,12.36024668,139.98,139.93,27.90978769]
[1763652490560,26.75646029,140.02,139.92,0.66]
[1763652490561,14.12024668,139.97,139.92,13.02024668]
[1763652490762,18.12096,139.99,139.92,13.02024668]
[1763652490763,1.76,139.96,139.92,13.02024668]
[1763652490956,1.76,139.96,139.93,10.44882769]
[1763652491358,1.76,139.96,139.95,9.78882769]
[1763652491757,1.76,139.96,139.95,10.44882769]
[1763652491959,1.76,139.96,139.95,9.78882769]
[1763652492272,1.76,139.96,139.93,0.66]
[1763652492580,1.76,139.96,139.93,10.44882769]
[1763652492985,1.76,139.96,139.93,9.78882769]
[1763652493186,1.76,139.96,139.92,12.36024668]
[1763652493358,14.12024668,139.96,139.91,22.80907437]
[1763652493562,12.36024668,139.95,139.91,9.78882769]
[1763652493776,14.12024668,139.96,139.92,0.66]
[1763652494080,21.26522166,139.96,139.92,0.66]
[1763652495091,8.90497498,139.96,139.92,13.02024668]
[1763652495276,19.88096,139.96,139.93,0.66]
[1763652495464,27.02592091,139.96,139.92,0.66]
[1763652495662,40.04616759,139.96,139.91,22.14907437]
[1763652495863,13.02024668,139.95,139.9,9.78882769]
[1763652496191,13.02024668,139.95,139.88,16.93745033]
[1763652496379,13.02024668,139.95,139.9,0.66]
[1763652496558,12.36024668,139.95,139.9,0.66]
[1763652496765,12.36024668,139.95,139.91,9.78882769]
[1763652496959,37.62620363,139.96,139.91,12.36024668]
[1763652497159,18.12096,139.96,139.92,22.80907437]
[1763652497395,7.14285714,140.0,139.95,29.29430638]
[1763652497564,1.76,139.99,139.95,29.95430638]
[1763652497765,1.76,139.99,139.96,12.36024668]
[1763652497960,1.76,139.99,139.97,9.78882769]
[1763652498774,1.76,139.99,139.97,10.44882769]
[1763652499291,1.76,139.99,139.96,12.36024668]
[1763652499483,8.90347842,139.99,139.96,9.78882769]
[1763652499682,9.56347842,139.99,139.96,9.78882769]
[1763652499986,39.12214355,139.99,139.95,10.44882769]
[1763652500163,12.36024668,140.01,139.96,12.36024668]
[1763652500363,1.76,140.0,139.97,9.78882769]
[1763652500571,1.76,140.0,139.97,10.48882769]
[1763652500766,1.76,140.0,139.97,22.84907437]
[1763652501371,8.90293749,140.0,139.97,22.84907437]
[1763652501776,8.90293749,140.0,139.97,10.48882769]
[1763652502094,12.36024668,140.1,139.98,13.06024668]
[1763652502289,12.36024668,140.05,140.0,22.14907437]
[1763652502595,7.24028967,140.06,140.02,12.36024668]
[1763652502596,0.1,140.06,140.02,12.36024668]
[1763652502884,0.1,140.06,140.05,12.36024668]
[1763652503276,20.32007655,140.06,140.02,9.78882769]
[1763652503588,25.08932294,140.06,140.02,9.78882769]
[1763652503762,38.16956962,140.06,140.02,9.78882769]
[1763652503969,37.44956962,140.06,140.02,10.48882769]
[1763652504176,7.23982987,140.06,140.02,22.14907437]
[1763652504388,7.23982987,140.06,139.98,1.76]
[1763652504389,7.23990417,140.06,140.04,9.78882769]
[1763652504887,0.1,140.06,140.04,10.48882769]
[1763652505057,18.22096,140.06,140.04,0.7]
[1763652505266,25.36105157,140.06,140.04,0.7]
[1763652505563,0.1,140.06,140.05,12.36024668]
[1763652505979,0.1,140.06,140.05,13.06024668]
[1763652506463,0.1,140.06,140.05,22.84907437]
[1763652507364,0.1,140.06,140.05,29.9893814]
[1763652507896,0.1,140.06,140.05,31.7493814]
[1763652508192,0.1,140.11,140.06,9.78882769]
[1763652508398,0.1,140.11,140.1,12.36024668]
[1763652508692,0.1,140.11,140.1,13.06024668]
[1763652508903,12.46024668,140.16,140.1,13.06024668]
[1763652508904,0.1,140.16,140.11,9.78882769]
[1763652509079,0.1,140.16,140.15,22.14907437]
[1763652509476,0.1,140.16,140.15,9.78882769]
[1763652509672,0.1,140.16,140.15,22.14907437]
[1763652509874,0.1,140.16,140.15,22.80907437]
[1763652510283,0.1,140.16,140.15,9.78882769]
[1763652511493,0.1,140.16,140.14,12.36024668]
[1763652511700,0.1,140.16,140.14,9.78882769]
[1763652512381,13.03024668,140.15,140.09,0.66]
[1763652512606,13.03024668,140.15,140.1,22.14907437]
[1763652512607,1.76,140.14,140.1,22.14907437]
[1763652512768,1.76,140.14,140.12,9.78882769]
[1763652513702,27.40506441,140.14,140.09,9.78882769]
[1763652513899,27.40506441,140.14,140.11,9.78882769]
[1763652514192,27.40506441,140.14,140.09,9.78882769]
[1763652514193,39.76531109,140.14,140.09,9.78882769]
[1763652514399,39.76531109,140.14,140.09,22.14907437]
[1763652514573,39.76531109,140.14,140.09,22.80907437]
[1763652515295,39.09531109,140.14,140.09,22.14907437]
[1763652515506,37.34240227,140.1,140.05,12.36024668]
[1763652515676,12.36024668,140.08,140.03,12.36024668]
[1763652515871,1.76,140.09,140.05,9.78882769]
[1763652516300,37.34240227,140.1,140.06,22.14907437]
[1763652516301,24.98215559,140.1,140.06,22.14907437]
[1763652516497,1.76,140.09,140.06,22.14907437]
[1763652516801,1.76,140.09,140.06,22.80907437]
[1763652517189,1.76,140.09,140.06,22.14907437]
[1763652517498,24.98215559,140.1,140.06,22.80907437]
[1763652517675,1.76,140.09,140.06,22.80907437]
[1763652518492,1.76,140.09,140.06,10.44882769]
[1763652518873,1.76,140.09,140.06,9.78882769]
[1763652519089,13.03024668,140.08,140.03,0.66]
[1763652519400,14.12024668,140.09,140.04,22.14907437]
[1763652519576,7.13877784,140.08,140.04,22.80907437]
[1763652519771,1.76,140.07,140.04,0.66]
[1763652520007,7.13877784,140.08,140.05,22.14907437]
[1763652520171,8.89877784,140.08,140.05,22.14907437]
[1763652520592,8.89877784,140.08,140.05,22.80907437]
[1763652520907,1.76,140.08,140.07,9.78882769]
[1763652521141,1.76,140.08,140.05,22.80907437]
[1763652521283,1.76,140.08,140.03,27.90978769]
[1763652521483,1.76,140.08,140.06,9.78882769]
[1763652521811,8.89885536,140.08,140.06,9.78882769]
[1763652522002,8.89885536,140.08,140.06,22.80907437]
[1763652523006,8.89885536,140.08,140.06,10.44882769]
[1763652523372,7.1386715,140.09,140.06,22.80907437]
[1763652523578,7.1386715,140.09,140.08,9.78882769]
[1763652523799,8.89791919,140.1,140.08,9.78882769]
[1763652524517,26.74231604,140.1,140.06,22.14907437]
[1763652524815,26.74231604,140.1,140.06,16.86883365]
[1763652525024,26.74231604,140.1,140.06,17.52883365]
[1763652525025,8.89791919,140.1,140.06,17.52883365]
[1763652525234,8.89791919,140.1,140.08,7.08000596]
[1763652525404,1.76,140.1,140.08,7.08000596]
[1763652525726,7.13763214,140.11,140.08,7.74000596]
[1763652526021,8.89679388,140.12,140.1,9.78882769]
[1763652526195,8.89687756,140.12,140.1,9.78882769]
[1763652526397,1.76,140.12,140.11,0.66]
[1763652526624,18.60713374,140.16,140.12,9.78882769]
[1763652526625,8.89556879,140.15,140.12,9.78882769]
[1763652526817,8.89556879,140.15,140.12,16.86883365]
[1763652527018,0.1,140.16,140.14,9.78882769]
[1763652527223,0.1,140.16,140.14,17.52883365]
[1763652527428,0.1,140.16,140.14,10.44882769]
[1763652527598,0.1,140.16,140.15,0.66]
[1763652527918,0.1,140.16,140.14,10.44882769]
[1763652528120,0.1,140.16,140.15,9.78882769]
[1763652528717,0.1,140.16,140.15,16.86883365]
[1763652529117,0.1,140.16,140.15,9.78882769]
[1763652529333,0.1,140.16,140.15,17.52883365]
[1763652529498,0.1,140.16,140.15,24.66404592]
[1763652529703,0.1,140.16,140.15,26.42404592]
[1763652530246,0.71,140.25,140.16,9.78882769]
[1763652530532,18.12096,140.23,140.19,7.08000596]
[1763652530910,18.12096,140.23,140.19,7.74000596]
[1763652531403,14.92165622,140.22,140.17,7.74000596]
[1763652531713,1.76,140.21,140.18,9.78882769]
[1763652531913,2.47,140.21,140.18,9.78882769]
[1763652532813,7.13165026,140.22,140.19,0.66]
[1763652533114,8.89165026,140.22,140.18,17.52883365]
[1763652533310,8.89165026,140.22,140.19,7.74000596]
[1763652534813,17.82460882,140.26,140.2,10.44882769]
[1763652535011,1.76,140.25,140.22,9.78882769]
[1763652535618,26.71558185,140.25,140.22,9.78882769]
[1763652536022,8.89026991,140.25,140.22,9.78882769]
[1763652536232,0.71,140.24,140.18,1.76]
[1763652536419,0.71,140.24,140.2,7.08000596]
[1763652536627,33.79558781,140.25,140.2,7.08000596]
[1763652536819,34.50558781,140.25,140.2,7.74000596]
[1763652537013,27.42558185,140.25,140.22,9.78882769]
[1763652537629,27.42558185,140.25,140.2,7.08000596]
[1763652538026,27.42558185,140.25,140.2,7.74000596]
[1763652538342,33.79558781,140.25,140.2,7.74000596]
[1763652538518,0.71,140.24,140.19,16.86883365]
[1763652538716,7.79000596,140.24,140.18,16.86883365]
[1763652538917,7.79000596,140.24,140.19,7.08000596]
[1763652539115,7.79000596,140.24,140.2,0.66]
[1763652539116,0.71,140.24,140.2,0.66]
[1763652539426,24.95558185,140.25,140.21,16.86883365]
[1763652539627,1.76,140.24,140.21,16.86883365]
[1763652539840,8.89069077,140.24,140.21,17.52883365]
[1763652540133,1.76,140.24,140.21,17.52883365]
[1763652540443,1.76,140.24,140.16,26.96096596]
[1763652540444,1.76,140.24,140.23,9.78882769]
[1763652540621,2.47,140.28,140.23,17.52883365]
[1763652540823,1.76,140.28,140.25,9.78882769]
[1763652541144,7.22855904,140.29,140.27,9.78882769]
[1763652541640,7.93855904,140.29,140.27,9.78882769]
[1763652541811,7.22855904,140.29,140.26,9.78882769]
[1763652542009,25.04878856,140.29,140.26,9.78882769]
[1763652542210,7.79000596,140.28,140.22,7.08000596]
[1763652542410,1.76,140.27,140.23,9.78882769]
[1763652542833,2.47,140.27,140.22,17.52883365]
[1763652543635,7.12961642,140.26,140.22,17.52883365]
[1763652543834,7.12961642,140.26,140.23,9.78882769]
[1763652544038,7.12961642,140.26,140.22,7.74000596]
[1763652544039,7.79000596,140.25,140.2,7.08000596]
[1763652544238,1.76,140.24,140.2,9.78882769]
[1763652544534,2.47,140.24,140.2,9.78882769]
[1763652545107,1.76,140.24,140.21,7.74000596]
[1763652545623,7.13114169,140.23,140.2,16.86883365]
[1763652546006,7.13114169,140.23,140.19,16.86883365]
[1763652546236,7.13114169,140.23,140.19,17.52883365]
[1763652546437,0.71,140.22,140.19,9.78882769]
[1763652546635,32.03900188,140.23,140.19,10.44882769]
[1763652547436,8.89083472,140.24,140.19,7.08000596]
[1763652547637,7.08000596,140.28,140.23,7.13114169]
[1763652547835,7.08000596,140.32,140.28,9.78882769]
[1763652547836,1.76,140.32,140.28,9.78882769]
[1763652548138,25.6086592,140.31,140.28,9.78882769]
[1763652548337,18.52865324,140.31,140.28,9.78882769]
[1763652548543,18.52865324,140.31,140.26,7.08000596]
[1763652548544,7.2280918,140.29,140.27,9.78882769]
[1763652548743,0.1,140.29,140.27,9.78882769]
[1763652548948,0.1,140.29,140.27,16.86883365]
[1763652549255,0.1,140.29,140.26,16.86883365]
[1763652549468,0.1,140.29,140.26,17.52883365]
[1763652549611,7.22823603,140.29,140.26,17.52883365]
[1763652549817,0.1,140.29,140.26,17.52883365]
[1763652550016,0.1,140.29,140.27,7.08000596]
[1763652550438,7.22835193,140.29,140.27,7.08000596]
[1763652550659,0.1,140.29,140.28,7.74000596]
[1763652551861,0.1,140.29,140.28,24.65743359]
[1763652552030,0.1,140.29,140.28,10.44882769]
[1763652552217,0.1,140.29,140.28,17.52883365]
[1763652552417,0.1,140.29,140.28,9.78882769]
[1763652552639,0.1,140.29,140.28,16.86883365]
[1763652552912,0.1,140.29,140.28,9.78882769]
[1763652553333,0.1,140.29,140.28,17.52883365]
[1763652553538,0.1,140.29,140.28,24.65743359]
[1763652553737,0.1,140.34,140.32,9.78882769]
[1763652554012,0.1,140.34,140.33,26.39489365]
[1763652556642,0.1,140.35,140.33,26.39489365]
[1763652556643,0.1,140.35,140.34,27.90978769]
[1763652556831,0.1,140.35,140.34,35.64979365]
[1763652557653,0.1,140.35,140.34,28.56978769]
[1763652557825,0.1,140.35,140.34,35.64979365]
[1763652558156,0.1,140.35,140.34,30.30978769]
[1763652558447,0.1,140.35,140.34,37.38979365]
[1763652558670,0.1,140.35,140.34,18.60883365]
[1763652558837,0.1,140.35,140.34,19.26883365]
[1763652559852,0.1,140.35,140.34,24.65438588]
[1763652561952,0.1,140.35,140.34,17.52883365]
[1763652562855,0.1,140.35,140.34,16.86883365]
[1763652563247,0.1,140.35,140.34,24.71438588]
[1763652564059,0.1,140.35,140.34,18.12096]
[1763652564377,0.1,140.35,140.34,34.98979365]
[1763652565375,0.1,140.35,140.34,35.70979365]
[1763652565840,0.1,140.35,140.34,27.90978769]
[1763652566045,0.1,140.35,140.34,34.98979365]
[1763652566247,0.1,140.35,140.34,35.70979365]
[1763652566573,0.1,140.35,140.34,42.83534588]
[1763652566761,0.1,140.35,140.34,35.70979365]
[1763652567346,0.1,140.35,140.34,42.83534588]
[1763652569246,0.1,140.38,140.34,61.36178167]
[1763652569463,0.1,140.38,140.37,16.86883365]
[1763652570490,0.1,140.38,140.37,23.992863]
[1763652571590,0.1,140.38,140.37,16.86883365]
[1763652571770,7.22352186,140.38,140.37,16.86883365]
[1763652572172,7.92352186,140.38,140.37,9.78882769]
[1763652572596,25.73232653,140.38,140.31,0.66]